Cogmind - Beta 15 @@@ ROGUE MODE // 2025.08.25 @ 17:59:10 Player: NQH Result: Destroyed by D-53 Grenadier with Mini Grenade Launcher Performance ------------- Evolutions (1) 500 Regions Visited (3) 600 Robots Destroyed (5) 25 Value Destroyed (135) 135 Prototype IDs (0) 0 Alien Tech Used (0) 0 Bonus (0) 0 TOTAL SCORE: 1260 Bonus ------- None Cogmind --------- Core Integrity 0/400 Matter 66/300 Energy 90/100 System Corruption 0% Temperature Cool (0) Movement Core (50) Location -9/Mines Parts ------- > --- POWER (1) -------- (None) > --- PROPULSION (4) --- (None) > --- UTILITY (2) ------ Weight Redist. System > --- WEAPON (2) ------- (None) > --- INVENTORY (5) ---- (None) Peak State ------------ > --- POWER ------------ Ion Engine > --- PROPULSION ------- Light Treads Light Treads > --- UTILITY ---------- Weight Redist. System > --- WEAPON ----------- Mini Grenade Launcher Mini Grenade Launcher > --- INVENTORY -------- Grenade Launcher Mini Grenade Launcher Mini Grenade Launcher [Rating: 9] Favorites ----------- Power Ion Engine Engine Ion Engine Propulsion Light Treads Treads Light Treads Flight Unit VTOL Module Utility Weight Redist. System Device Weight Redist. System Weapon Mini Grenade Launcher Launcher Mini Grenade Launcher Build | -11 -10 -9 -9 ------- Run | Yrd Mat Mat Min Slots Evolved 2 | . . 2 . Power . | . . . . Propulsion 2 | . . 2 . Utility . | . . . . Weapon . | . . . . Parts Attached 10 | 2 5 1 2 Power 1 | . 1 . . Engine 1 | . 1 . . Core . | . . . . Reactor . | . . . . Propulsion 3 | 2 . 1 . Treads 2 | 2 . . . Leg . | . . . . Wheel . | . . . . Hover . | . . . . Flight 1 | . . 1 . Utility 2 | . 1 . 1 Device 2 | . 1 . 1 Storage . | . . . . Processor . | . . . . Hackware . | . . . . Protection . | . . . . Artifact . | . . . . Weapon 4 | . 3 . 1 Energy Gun . | . . . . Energy Cannon . | . . . . Ballistic Gun . | . . . . Ballistic Cannon . | . . . . Launcher 4 | . 3 . 1 Special Weapon . | . . . . Impact Weapon . | . . . . Slashing Weapon . | . . . . Piercing Weapon . | . . . . Special Melee Weapon . | . . . . Unidentified Prototypes . | . . . . Parts Lost 2 | . . . 2 Power . | . . . . Propulsion 1 | . . . 1 Utility . | . . . . Weapon 1 | . . . 1 Highest Loss Streak 2 | . . . 2 To Critical Strikes . | . . . . Average Backups 2 | . 1 4 . Power . | . . . . Propulsion . | . . . . Utility . | . . 1 . Weapon 1 | . . 2 . Tool/Special . | . . . . Unused Backups 4 | . . 4 . Power . | . . . . Propulsion . | . . . . Utility 2 | . . 2 . Weapon 2 | . . 2 . Tool/Special . | . . . . Average Slot Usage (%) 46 | . 51 53 16 Engine 6 | . 5 8 . Treads 18 | . 28 17 . Flight 1 | . . . 9 Device 5 | . 2 8 4 Launcher 14 | . 15 17 2 Peak Build Rating 9 | 2 9 9 6 Average Rating 5 | 1 4 7 3 On Entrance 3 | . 2 9 2 Naked Turns 23 | . . 23 . Heaviest Build 9 | . 9 7 4 Greatest Support 46 | 40 46 46 10 Greatest Overweight (x) . | . . . . Average Overweight (x) . | . . . . Largest Inventory Capacity 5 | 5 5 5 5 Average Capacity 5 | 5 5 5 5 Most Carried 5 | . 5 5 . Average Carried 2 | . 1 4 . Final Capacity 5 | 5 5 5 5 Final Carried 5 | . 5 . . Class Distribution -------------------- 100% | Mutant Dominant Class ---------------- Mutant | -10/Materials Mutant | -9/Materials Mutant | -9/Mines Resources | -11 -10 -9 -9 ----------- Run | Yrd Mat Mat Min Matter Collected 149 | 51 . 2 96 Remotely . | . . . . Salvage Created 43 | . 34 2 7 Parts 4 | . 1 . 3 Haulers Intercepted . | . . . . Recyclers Shooed 1 | . 1 . . Parts Field Recycled . | . . . . Retrieved Matter . | . . . . Parts Self-Destructed . | . . . . Prevented . | . . . . Kills | -11 -10 -9 -9 ------- Run | Yrd Mat Mat Min Combat Hostiles Destroyed 3 | . 2 1 . AOE 3 | . 2 1 . Classes Destroyed 3 | . 1 2 . Worker 2 | . . 1 1 Grunt 2 | . 2 . . Sentry 1 | . . 1 . Best Kill Streak 2 | . 2 2 1 Combat Bots Only 2 | . 2 1 . Max Kills in Single Turn 1 | . 1 1 1 Gunslinging . | . . . . Exploded 1 | . 1 1 . Melee . | . . . . Uniques/NPCs Destroyed . | . . . . Combat | -11 -10 -9 -9 -------- Run | Yrd Mat Mat Min Hostile Shots Fired 47 | . 9 31 7 Missed 10 | . 3 7 . Hits 37 | . 6 24 7 Projectile 37 | . 6 24 7 AOE 7 | . . . 7 Damage Taken 899 | . 63 442 394 Core 449 | . . 107 342 Absorbed by Shields . | . . . . Core Remaining (%) 100 | 100 100 . . Volleys Fired 12 | . 8 2 2 Largest 2 | . 1 2 1 Hottest 60 | . 30 60 33 Shots Fired 14 | . 8 4 2 Gun . | . . . . Cannon . | . . . . Launcher 14 | . 8 4 2 Special . | . . . . Kinetic . | . . . . Thermal . | . . . . Explosive 14 | . 8 4 2 Electromagnetic . | . . . . Robot Hit Streak 6 | . 4 6 1 Robot Miss Streak 1 | . 1 1 1 Penetration Max . | . . . . Secondary Targets . | . . . . Shots Hit Robots 10 | . 6 3 1 Core Hits 13 | . 5 5 3 Critical Kills . | . . . . Critical Parts Destroyed . | . . . . Critical Strikes . | . . . . Melee Attacks . | . . . . Impact . | . . . . Slashing . | . . . . Piercing . | . . . . Sneak Attacks . | . . . . Combat Hostiles . | . . . . Follow-up Attacks . | . . . . Damage Inflicted 651 | . 410 175 66 Guns . | . . . . Cannons . | . . . . Explosions 627 | . 407 161 59 Melee . | . . . . Ramming 24 | . 3 14 7 Kinetic . | . . . . Thermal . | . . . . Explosive 627 | . 407 161 59 Electromagnetic . | . . . . Impact . | . . . . Slashing . | . . . . Piercing . | . . . . Highest Corruption . | . . . . Average Corruption . | . . . . Corruption Purged . | . . . . Corruption Blocked . | . . . . Overload Shots . | . . . . Overflow Damage 17 | . 11 6 . Projectiles . | . . . . Explosions 17 | . 11 6 . Melee . | . . . . Knockbacks . | . . . . Impact . | . . . . Kinetic . | . . . . Secondary . | . . . . Self-Inflicted Damage 130 | . . 90 40 Shots 3 | . . 2 1 Rammed 14 | . 1 12 1 Targets Rammed 14 | . 1 12 1 Kicked . | . . . . Crushed . | . . . . Highest Temperature 6 | . . 6 . Average Temperature 5 | . . 5 . Received Heat Transfer 153 | . 36 117 . Siege Activations . | . . . . Martial Activations . | . . . . Shielding Activations . | . . . . Robots Disrupted . | . . . . Combat Hostiles . | . . . . Robots Corrupted . | . . . . Combat Hostiles . | . . . . Parts Fried . | . . . . Impact Corruptions . | . . . . Robots Melted . | . . . . Combat Hostiles . | . . . . Parts Melted . | . . . . Heat Transferred . | . . . . Parts Sabotaged . | . . . . Parts Stolen . | . . . . Parts Stripped . | . . . . Power Chain Reactions . | . . . . Alert | -11 -10 -9 -9 ------- Run | Yrd Mat Mat Min Maximum Alert Level . | . . . . Low Security (%) 100 | 100 100 100 100 Level 1 . | . . . . Level 2 . | . . . . Level 3 . | . . . . Level 4 . | . . . . Level 5 . | . . . . High Security . | . . . . Max Security . | . . . . Peak Influence 54 | . 54 54 29 Initial . | . . . . Average 13 | . 18 14 5 Influence Increases 164 | . 64 64 36 Destroy 0b10 Robot/C 60 | . 40 20 . Destroy 0b10 Robot/NC 10 | . . 5 5 Destroy Leader 20 | . 10 10 . Disable Machine 30 | . . 15 15 Destroy Structure 44 | . 14 14 16 Influence Decreases 158 | . 64 64 30 Time Decay 138 | . 64 64 10 Lost Part 20 | . . . 20 Squads Dispatched 1 | . 1 . . Investigation . | . . . . Extermination . | . . . . Reinforcement 1 | . 1 . . Assault . | . . . . Garrison . | . . . . Intercept . | . . . . Searches Triggered . | . . . . Construction Impeded . | . . . . Haulers Reinforced . | . . . . Active Scanning Responses . | . . . . Cargo Convoy Interrupts . | . . . . Stealth | -11 -10 -9 -9 --------- Run | Yrd Mat Mat Min Distress Signals 2 | . . 2 . Communications Jammed . | . . . . Distress Signals . | . . . . Times Spotted 18 | . 4 7 7 Peak Tracking Total 14 | . 2 4 14 Tactical Retreats 1 | . . . 1 Traps | -11 -10 -9 -9 ------- Run | Yrd Mat Mat Min Traps Triggered . | . . . . Indirectly . | . . . . Trap Hack Attempts . | . . . . Triggered . | . . . . Disarmed . | . . . . Reprogrammed . | . . . . Reused . | . . . . Traps Extracted . | . . . . Installed . | . . . . Triggered . | . . . . Machines | -11 -10 -9 -9 ---------- Run | Yrd Mat Mat Min Machines Disabled 2 | . . 1 1 Max in Single Turn 1 | . . 1 1 Machines Repaired . | . . . . Machines Dismantled . | . . . . Machines Sabotaged . | . . . . Overloaded Fab Kills . | . . . . Hacking | -11 -10 -9 -9 --------- Run | Yrd Mat Mat Min Machines Accessed . | . . . . Terminals . | . . . . Fabricators . | . . . . Repair Stations . | . . . . Recycling Units . | . . . . Scanalyzers . | . . . . Garrison Access . | . . . . Total Hacks . | . . . . Successful . | . . . . Failed . | . . . . Catastrophic . | . . . . Database Lockouts . | . . . . Manual . | . . . . Terminals . | . . . . Fabricators . | . . . . Repair Stations . | . . . . Recycling Units . | . . . . Scanalyzers . | . . . . Garrison Access . | . . . . Terminal Hacks . | . . . . Fabricator Hacks . | . . . . Repair Station Hacks . | . . . . Recycling Unit Hacks . | . . . . Scanalyzer . | . . . . Garrison Access Hacks . | . . . . Unauthorized Hacks . | . . . . Terminals . | . . . . Fabricators . | . . . . Repair Stations . | . . . . Recycling Units . | . . . . Scanalyzers . | . . . . Garrison Access . | . . . . Data Cores Recovered . | . . . . Used . | . . . . Hacking Detections . | . . . . Full Trace Events . | . . . . Feedback Events . | . . . . Feedback Blocked . | . . . . Robot Schematics Acquired . | . . . . Robots Built . | . . . . Authchips . | . . . . Time . | . . . . Total Robot Build Rating . | . . . . Part Schematics Acquired . | . . . . Parts Built . | . . . . Authchips . | . . . . Time . | . . . . Total Part Build Rating . | . . . . Parts Repaired . | . . . . Time . | . . . . Parts Recycled . | . . . . Recycled Matter . | . . . . Retrieved Matter . | . . . . Retrieved Components . | . . . . Parts Scanalyzed . | . . . . Part Schematics Acquired . | . . . . Parts Damaged . | . . . . Bothacking | -11 -10 -9 -9 ------------ Run | Yrd Mat Mat Min Used RIF Installer . | . . . . Robots Hacked . | . . . . Non-combat . | . . . . Combat . | . . . . Robot Hacks Applied . | . . . . Relay Couplers Released . | . . . . Fabnet Peak Effective % . | . . . . Robots Rewired . | . . . . Allies Hacked . | . . . . Hacks Repelled . | . . . . Allies | -11 -10 -9 -9 -------- Run | Yrd Mat Mat Min Total Allies . | . . . . Largest Group . | . . . . Highest-Rated Group . | . . . . Highest-Rated Ally . | . . . . Total Orders . | . . . . Ally Attacks . | . . . . Total Damage . | . . . . Kills . | . . . . Allies Corrupted . | . . . . Allies Melted . | . . . . Intel | -11 -10 -9 -9 ------- Run | Yrd Mat Mat Min Active Infowar (turns) . | . . . . Robot Analysis Total . | . . . . Derelict Logs Recovered . | . . . . Drone Launches . | . . . . Drone Recoveries . | . . . . Exploration | -11 -10 -9 -9 ------------- Run | Yrd Mat Mat Min Turns Passed 509 | 28 183 229 69 Spaces Moved 473 | 20 97 190 166 Core 43 | 5 . 32 6 Treads 216 | 15 97 104 . Legs . | . . . . Wheels . | . . . . Hover . | . . . . Flight 214 | . . 54 160 Fastest Speed 35 | 50 160 35 35 Average Speed 93 | 132 160 105 35 Slowest Speed 160 | 160 160 160 50 Overloaded Moves . | . . . . Propulsion Burnouts . | . . . . Robots Hopped . | . . . . Potential Cave-ins . | . . . . Cave-ins Triggered . | . . . . Exploration Rate (%) 17 | 2 21 22 23 Regions Visited 3 Branch Regions 1 Pre-discovered Areas . | . . . . Known Exits Taken . | . . . . Unknown Exits Taken 3 | 1 1 1 . Scrap Searched 1 | . . . 1 Spaces Dug . | . . . . Terrain Destroyed 45 | . 15 12 18 Melee . | . . . . Projectile . | . . . . AOE 45 | . 15 12 18 Terrain Rammed . | . . . . Walls Destroyed . | . . . . Machines Disabled . | . . . . Actions | -11 -10 -9 -9 --------- Run | Yrd Mat Mat Min Total 518 | 21 114 210 173 Wait 2 | . . . 2 Move 470 | 19 96 189 166 Hop . | . . . . Pick Up 5 | . 4 1 . Fast Attach 8 | 2 4 . 2 Attach 1 | . . 1 . Detach . | . . . . Swap 1 | . 1 . . Drop 5 | . . 5 . Fire 12 | . 8 2 2 Melee . | . . . . Ram 4 | . . 3 1 Kick . | . . . . Crush 10 | . 1 9 . Escape Stasis . | . . . . Rewire . | . . . . Trap . | . . . . Miscellaneous . | . . . . Route ------- -11/Scrapyard -10/Materials -9/Materials (discovered 2 exits: [*Min x2]) -9/Mines History --------- Turn | Location | Event 3 | -11/Scrapyard | Discovered new exit (range 15) 29 | -11/Scrapyard | Entered Materials 151 | -10/Materials | Discovered new exit (range 16) 212 | -10/Materials | Entered another Materials area 212 | -9/Materials | Evolved 2 slots: Propulsion x2 308 | -9/Materials | Build established: Mutant 399 | -9/Materials | Released all parts (6) 436 | -9/Materials | Discovered new exit (range 16) 440 | -9/Materials | Discovered new exit (range 13) 441 | -9/Materials | Entered Mines 472 | -9/Mines | Assembled infested the area 507 | -9/Mines | Core integrity fell below 50% 509 | -9/Mines | Core integrity fell below 20% 510 | -9/Mines | Destroyed by D-53 Grenadier with Mini Grenade Launcher Last Messages --------------- 00459_ Found 47 Matter. 00460_ Acquired 47 matter. 00460_ Acquired 49 matter. 00462_ K-01 Serf cleans the Core Extractor. 00472_ ALERT: Infestation in the mines, dispatching Demolisher response squad. 00485_ K-01 Serf collects debris. 00486_ Acquired Rocket Launcher. 00488_ K-01 Serf collects debris. 00489_ Acquired Weight Redist. System. 00491_ C-30 ARC bursts open, deploying its payload. 00491_ D-53 Grenadier unfolds itself. 00491_ K-01 Serf destroyed. 00491_ Core Extractor disabled. 00504_ VTOL Module destroyed. 00506_ Rocket Launcher destroyed. 00507_ U-05 Engineer lays Concrete. 00508_ U-05 Engineer builds a Wall. 00509_ R-06 Scavenger destroyed. 00510_ Slammed into U-05 Engineer. Map ----- +----------------------------------------------------+ | ?????????????????????????# #???????? | | ?????????????????????????### #???????? | | ???????????????????????????# #???????? | | ???????????????????????????# #???????? | | ???????????????????????????# #???????? | | ???????????????????????????# #???????? | | ???????????????????????????# #???????? | | ???????????????????????????# #???????? | | ???????????????????????????# #???????? | | ???????????????????????????# #???????? | | ???????????????# ########### #####???? | | ???????????????# #???? | | ????????????????###### ######## #???? | | ????????###???####???# #??????# #???? | | ????????# #### ##??# #??????# #???? | | ????????# ##?# #??????# #???? | | ????????### ### #???#### #???? | | ??????????### [ ## ##?## ## ##??? | | ????????????## ! ### ##?? | | ?????????????# ! # d #?? | | ?????????????## d #?? | | ??????????????# ! # #?? | | ??????????????# ##### #?? | | ?????????????## ##??# #?? | | ?????????????# ######= #? | | ?????????????# % %u@ ##? | | ?????????????# #####! #?? | | ?????????????### #???# ##?? | | ????# ####### #???#### ######??? | | ???# #???????####???????? | | ???# ####### #??????????????????? | | ?????????????### #??????????????????? | | ?????????????# #??????????????????? | | ?????????????# #????????##????????? | | ?????????????# #??????? #????????? | | ?????????????# ##????? #????????? | | ????????????## ###??# #????????? | | ????????????# """ ### #????????? | | ???????????# """ #????????? | | ???????????# """ ##????????? | | ?????????? #####?????????? | | ??????? ########?????????????? | | ????????########?????????????????????? | | ?????????????????????????????????????? | | ?????????????????????????????????????? | | ?????????????????????????????????????? | | ?????????????????????????????????????? | | ?????????????????????????????????????? | | ?????????????????????????????????????? | | ?????????????????????????????????????? | +----------------------------------------------------+ Best States ------------- Heat Dissipation 28 Energy Generation 10 Energy Capacity 250 Matter Stores 136 Matter Capacity 300 Sight Range 16 Terrain Scan Density 10 Additional Mass Support 6 Evasion (%) 63 Recoil Reduction 2 Item Schematics ----------------- None Robot Schematics ------------------ None Fabricated ------------ Nothing Repaired ---------- Nothing Alien Tech Used ----------------- None Achievements -------------- None Challenges ------------ None Game ------ Seed PiercingAdvancedLauncher Manual? 0 Play Time 00:03:42 Cumulative 19.9 hours Start 2025.08.25 @ 17:56:18 End 2025.08.25 @ 17:59:10 Sessions 1 Manual Loads 0 Difficulty Rogue Special Mode None Game No. 67 Rogue 67 Adventurer 0 Explorer 0 Win Type - Total 0 Types 0/0/0/0/0/0/0/0/0/0 Lore% 10 Gallery% 24 Achievement% 23 Wizard Run 0 Options --------- Layout 1 ASCII 0 Keyboard 1 Movement Vi Keybinds 0 Fullscreen 1 Font 16/SmallcapsGlow Map View 55x38 Zoom Use 0% Tactical HUD 1 Map Filters NONE Filters NONE Steam 1 RUN: 25cd8e88-280e-48f7-a590-2a3d556d81fa